bitfinex/quotes_SOLUSD_20251120
["timestamp","ask_amount","ask_price","bid_price","bid_amount"]
[1763661019314,9.78882769,132.26,132.25,7.94552107]
[1763661019594,0.67,132.27,132.25,7.94552107]
[1763661019595,9.78882769,132.27,132.25,7.94552107]
[1763661019810,9.78882769,132.27,132.26,7.94552107]
[1763661020697,10.47882769,132.27,132.21,0.67]
[1763661021132,10.47882769,132.27,132.25,7.94552107]
[1763661021295,10.47882769,132.27,132.24,7.94552107]
[1763661021494,9.78882769,132.25,132.2,0.68]
[1763661021691,9.78882769,132.25,132.16,7.94552107]
[1763661021897,9.78882769,132.2,132.08,7.94552107]
[1763661022096,59.78882769,132.18,132.09,2.52]
[1763661022315,59.78882769,132.16,132.06,0.68]
[1763661022657,59.78882769,132.16,132.05,3.95175699]
[1763661022658,9.78882769,132.14,132.13,7.94552107]
[1763661022868,9.78882769,132.14,132.07,0.68]
[1763661023150,9.78882769,132.12,132.09,7.94552107]
[1763661023457,0.69,132.12,132.1,7.94552107]
[1763661023760,9.78882769,132.13,132.11,7.94552107]
[1763661023930,0.69,132.12,132.08,0.1]
[1763661024139,0.69,132.12,132.11,7.94552107]
[1763661024444,9.78882769,132.15,132.08,0.1]
[1763661024650,9.78882769,132.15,132.13,7.94552107]
[1763661024860,1.84,132.18,132.14,7.94552107]
[1763661025020,9.78882769,132.2,132.17,7.94552107]
[1763661025223,50.0,132.23,132.19,7.94552107]
[1763661025423,50.0,132.23,132.2,7.94552107]
[1763661025719,9.78882769,132.2,132.14,0.68]
[1763661026048,9.78882769,132.21,132.19,7.94552107]
[1763661026220,9.78882769,132.21,132.2,7.94552107]
[1763661026945,9.78882769,132.22,132.2,7.94552107]
[1763661027152,10.47882769,132.22,132.2,7.94552107]
[1763661027363,9.78882769,132.19,132.11,0.68]
[1763661027565,9.78882769,132.19,132.16,7.94552107]
[1763661027770,9.78882769,132.19,132.11,0.68]
[1763661027771,9.78882769,132.17,132.11,18.80096]
[1763661028062,9.78882769,132.17,132.15,7.94552107]
[1763661028371,9.78882769,132.17,132.14,7.94552107]
[1763661028734,10.47882769,132.17,132.15,7.94552107]
[1763661028931,10.47882769,132.17,132.08,8.04552107]
[1763661028932,1.84,132.16,132.08,8.04552107]
[1763661029146,59.78882769,132.15,132.11,7.94552107]
[1763661029370,9.78882769,132.12,132.1,7.94552107]
[1763661029550,11.62882769,132.12,132.1,7.94552107]
[1763661029751,12.31882769,132.12,132.1,7.94552107]
[1763661030373,11.62882769,132.12,132.1,7.94552107]
[1763661030880,51.84,132.15,132.11,7.94552107]
[1763661031070,9.78882769,132.16,132.14,7.94552107]
[1763661031255,50.72,132.24,132.16,18.12096]
[1763661031568,50.0,132.21,132.12,0.71]
[1763661031736,9.78882769,132.2,132.18,7.94552107]
[1763661032271,50.0,132.23,132.19,8.65552107]
[1763661032470,50.0,132.23,132.22,7.94552107]
[1763661032770,59.78882769,132.23,132.22,7.94552107]
[1763661033149,59.78882769,132.23,132.18,0.71]
[1763661033461,9.78882769,132.23,132.22,7.94552107]
[1763661033969,9.78882769,132.22,132.18,0.71]
[1763661034184,10.50882769,132.22,132.15,0.71]
[1763661034664,9.78882769,132.2,132.15,0.71]
[1763661035054,10.50882769,132.2,132.18,7.94552107]
[1763661035647,9.78882769,132.18,132.12,0.71]
[1763661035846,9.78882769,132.18,132.17,7.94552107]
[1763661036052,9.78882769,132.18,132.12,0.71]
[1763661036260,9.78882769,132.18,132.17,7.94552107]
[1763661036573,10.50882769,132.18,132.15,7.94552107]
[1763661036876,1.86,132.17,132.15,7.94552107]
[1763661037039,11.64882769,132.17,132.16,7.94552107]
[1763661037243,1.86,132.2,132.16,7.94552107]
[1763661037462,9.78882769,132.19,132.14,0.71]
[1763661037674,11.64882769,132.19,132.11,18.12096]
[1763661037879,11.64882769,132.19,132.13,0.71]
[1763661038382,9.78882769,132.23,132.14,18.12096]
[1763661038611,50.0,132.26,132.22,7.94552107]
[1763661038875,41.91002013,132.33,132.25,7.94552107]
[1763661038876,1.86,132.29,132.25,7.94552107]
[1763661039059,1.86,132.29,132.2,0.71]
[1763661039060,50.72,132.28,132.2,0.71]
[1763661039258,50.72,132.28,132.25,7.94552107]
[1763661039449,50.72,132.28,132.26,7.94552107]
[1763661039645,0.72,132.28,132.27,7.94552107]
[1763661039840,9.78882769,132.28,132.27,7.94552107]
[1763661040274,1.86,132.29,132.27,7.94552107]
[1763661040486,1.86,132.29,132.28,7.94552107]
[1763661040841,0.72,132.31,132.28,7.94552107]
[1763661041050,0.72,132.31,132.25,18.83096]
[1763661041277,0.72,132.31,132.3,7.94552107]
[1763661041578,9.78882769,132.3,132.25,18.83096]
[1763661041762,9.78882769,132.3,132.29,7.94552107]
[1763661041951,9.78882769,132.31,132.29,7.94552107]
[1763661042145,9.78882769,132.31,132.3,7.94552107]
[1763661042368,0.72,132.3,132.29,7.94552107]
[1763661042698,9.78882769,132.29,132.26,7.94552107]
[1763661042901,1.86,132.28,132.26,7.94552107]
[1763661043103,2.58,132.28,132.26,7.94552107]
[1763661043471,2.58,132.28,132.27,7.94552107]
[1763661043699,11.64882769,132.28,132.27,7.94552107]
[1763661043900,12.36882769,132.28,132.27,7.94552107]
[1763661044098,11.64882769,132.28,132.27,7.94552107]
[1763661044308,1.86,132.28,132.24,7.94552107]
[1763661044484,1.86,132.28,132.23,0.71]
[1763661044800,1.86,132.28,132.27,7.94552107]
[1763661045002,9.78882769,132.31,132.27,7.94552107]
[1763661045305,10.50882769,132.31,132.25,0.71]
[1763661045495,10.50882769,132.31,132.29,7.94552107]
[1763661045802,10.50882769,132.31,132.3,7.94552107]
[1763661045985,9.78882769,132.31,132.3,7.94552107]
[1763661046778,9.78882769,132.35,132.3,8.65552107]
[1763661046979,3.95217372,132.38,132.34,7.94552107]
[1763661047179,0.2,132.39,132.37,7.94552107]
[1763661047377,0.2,132.39,132.38,7.94552107]
[1763661047988,0.2,132.39,132.38,8.65552107]
[1763661048915,0.2,132.39,132.36,2.57]
[1763661049100,0.2,132.39,132.38,7.94552107]
[1763661050898,0.2,132.39,132.34,0.71]
[1763661051131,9.78882769,132.38,132.37,7.94552107]
[1763661051344,9.78882769,132.38,132.35,7.94552107]
[1763661051495,9.78882769,132.38,132.36,7.94552107]
[1763661051926,9.78882769,132.38,132.37,7.94552107]
[1763661052544,9.78882769,132.38,132.32,26.76648107]
[1763661052749,0.2,132.39,132.37,7.94552107]
[1763661052951,0.2,132.39,132.38,7.94552107]
[1763661053448,9.78882769,132.38,132.34,0.7]
[1763661053627,9.78882769,132.38,132.37,7.94552107]
[1763661054221,0.2,132.39,132.37,8.64552107]
[1763661054437,0.2,132.39,132.38,7.94552107]
[1763661054950,0.2,132.39,132.38,8.64552107]
[1763661055117,0.2,132.41,132.38,16.59104214]
[1763661055317,0.2,132.41,132.4,15.89104214]
[1763661055869,0.2,132.41,132.4,8.64552107]
[1763661056016,0.2,132.41,132.4,7.94552107]
[1763661056517,0.2,132.41,132.4,15.89104214]
[1763661056712,0.2,132.41,132.4,16.59104214]
[1763661057965,0.2,132.41,132.4,0.7]
[1763661058167,0.2,132.41,132.4,8.64552107]
[1763661058573,0.2,132.41,132.4,7.94552107]
[1763661058737,0.2,132.41,132.4,8.64552107]
[1763661059346,0.2,132.41,132.4,16.59104214]
[1763661060371,0.2,132.41,132.37,0.7]
[1763661060543,0.2,132.41,132.4,7.94552107]
[1763661061481,0.2,132.41,132.4,15.89104214]
[1763661061663,0.2,132.41,132.4,16.59104214]
[1763661062045,0.2,132.41,132.4,7.94552107]
[1763661062246,10.64882769,132.41,132.39,7.94552107]
[1763661062944,10.44882769,132.4,132.37,7.94552107]
[1763661063147,59.78882769,132.38,132.36,7.94552107]
[1763661063546,50.0,132.38,132.36,7.94552107]
[1763661063779,50.66,132.4,132.37,7.94552107]
[1763661063991,11.82882769,132.41,132.35,18.12096]
[1763661063992,0.2,132.41,132.35,18.12096]
[1763661064475,0.2,132.41,132.36,0.7]
[1763661065258,0.2,132.41,132.37,18.12096]
[1763661065451,0.2,132.41,132.4,30.54721451]
[1763661065779,0.2,132.41,132.4,31.24721451]
[1763661066388,0.2,132.41,132.4,30.54721451]
[1763661066552,0.86,132.41,132.39,12.42625451]
[1763661066755,9.78882769,132.39,132.33,0.7]
[1763661067086,0.2,132.41,132.38,12.42625451]
[1763661067381,0.2,132.41,132.4,12.42625451]
[1763661067682,0.2,132.41,132.4,13.12625451]
[1763661067882,0.2,132.41,132.4,18.82096]
[1763661068194,0.2,132.41,132.4,30.54721451]
[1763661068487,0.2,132.41,132.4,18.12096]
[1763661068710,0.2,132.41,132.4,30.54721451]
[1763661068875,0.2,132.41,132.4,18.12096]
[1763661069082,0.2,132.41,132.4,12.42625451]
[1763661069379,0.2,132.41,132.4,31.24721451]
[1763661070565,0.2,132.41,132.4,14.98625451]
[1763661071883,0.2,132.41,132.4,0.7]
[1763661072058,0.2,132.41,132.4,13.12625451]
[1763661072246,0.2,132.41,132.4,12.42625451]
[1763661072694,0.86,132.41,132.38,12.42625451]
[1763661073126,0.2,132.41,132.4,30.54721451]
[1763661073317,0.2,132.41,132.4,14.28625451]
[1763661073621,0.2,132.41,132.4,14.98625451]
[1763661073823,0.2,132.44,132.42,18.12096]
[1763661074005,0.2,132.44,132.43,12.42625451]
[1763661074214,0.2,132.44,132.43,13.12625451]
[1763661074535,0.2,132.52,132.47,18.12096]
[1763661074838,0.2,132.52,132.51,18.12096]
[1763661075041,0.2,132.55,132.51,31.24721451]
[1763661075325,0.2,132.55,132.54,12.42625451]
[1763661075494,0.2,132.56,132.54,14.98625451]
[1763661075700,0.2,132.56,132.55,31.18721451]
[1763661075938,0.2,132.61,132.57,18.12096]
[1763661076094,0.2,132.61,132.6,30.54721451]
[1763661076520,0.2,132.66,132.63,18.12096]
[1763661076819,0.2,132.66,132.63,19.98096]
[1763661077020,0.2,132.66,132.65,12.42625451]
[1763661077327,0.16,132.66,132.65,18.12096]
[1763661077498,0.16,132.66,132.65,42.97346902]
[1763661077701,50.66,132.74,132.65,42.97346902]
[1763661077923,50.66,132.76,132.73,12.42625451]
[1763661078223,0.66,132.76,132.7,1.86]
[1763661078425,0.66,132.75,132.7,1.86]
[1763661078609,0.66,132.75,132.74,12.42625451]
[1763661078809,2.52,132.79,132.74,12.42625451]
[1763661079008,0.66,132.78,132.76,12.42625451]
[1763661080010,10.44882769,132.78,132.77,12.42625451]
[1763661080534,9.78882769,132.77,132.7,1.86]
[1763661080710,10.45882769,132.77,132.73,12.42625451]
[1763661080910,9.78882769,132.75,132.7,1.86]
[1763661081107,9.78882769,132.73,132.71,12.42625451]
[1763661081526,0.67,132.72,132.67,1.86]
[1763661081711,0.67,132.72,132.7,12.42625451]
[1763661081712,9.78882769,132.71,132.7,12.42625451]
[1763661081909,0.67,132.72,132.7,12.42625451]
[1763661082124,0.67,132.71,132.66,12.42625451]
[1763661082322,10.45882769,132.73,132.7,12.42625451]
[1763661082631,0.67,132.72,132.71,12.42625451]
[1763661082800,0.67,132.72,132.69,12.42625451]
[1763661083005,9.78882769,132.71,132.69,12.42625451]
[1763661083229,0.67,132.7,132.69,12.42625451]
[1763661083438,0.67,132.7,132.61,22.87606543]
[1763661083617,0.67,132.7,132.63,1.86]
[1763661083821,0.67,132.7,132.68,12.42625451]
[1763661084228,9.78882769,132.69,132.67,12.42625451]
[1763661084437,9.78882769,132.69,132.63,1.86]
[1763661084640,22.2150822,132.67,132.55,9.78882769]
[1763661084810,50.0,132.64,132.57,12.42625451]
[1763661085009,9.78882769,132.63,132.6,12.42625451]
[1763661085314,9.78882769,132.61,132.56,1.86]
[1763661085512,9.78882769,132.59,132.57,12.42625451]
[1763661086032,9.78882769,132.59,132.54,18.12096]
[1763661086033,9.78882769,132.57,132.48,12.42625451]
[1763661086231,9.78882769,132.57,132.5,1.86]
[1763661086431,0.67,132.56,132.54,12.42625451]
[1763661086611,0.67,132.56,132.5,1.86]
[1763661086826,0.67,132.56,132.51,18.12096]
[1763661087012,9.78882769,132.55,132.53,12.42625451]
[1763661087336,9.78882769,132.55,132.51,18.12096]
[1763661087545,0.67,132.54,132.52,12.42625451]
[1763661087755,0.67,132.54,132.51,12.42625451]
[1763661088054,9.78882769,132.53,132.51,12.42625451]
[1763661088218,22.2150822,132.53,132.46,1.86]
[1763661088419,0.67,132.52,132.49,12.42625451]
[1763661088840,0.67,132.52,132.39,12.42625451]
[1763661088841,50.0,132.5,132.39,12.42625451]
[1763661089042,9.78882769,132.49,132.46,12.42625451]
[1763661089224,10.45882769,132.49,132.42,18.12096]
[1763661089429,0.67,132.49,132.48,12.42625451]
[1763661089629,50.0,132.5,132.48,12.42625451]
[1763661089921,9.78882769,132.47,132.43,12.42625451]
[1763661090121,9.78882769,132.47,132.44,12.42625451]
[1763661090340,0.68,132.46,132.45,12.42625451]
[1763661090744,0.68,132.46,132.39,12.42625451]
[1763661090745,50.68,132.46,132.39,12.42625451]
[1763661090929,0.68,132.46,132.44,12.42625451]
[1763661091290,0.68,132.45,132.38,2.06]
[1763661091436,9.78882769,132.44,132.43,12.42625451]
[1763661091752,0.68,132.45,132.43,12.42625451]
[1763661091955,0.68,132.44,132.43,12.42625451]
[1763661092532,0.68,132.44,132.39,18.12096]
[1763661092743,10.46882769,132.44,132.42,12.42625451]
[1763661093055,0.68,132.44,132.42,12.42625451]
[1763661093257,0.68,132.43,132.42,12.42625451]
[1763661093427,10.46882769,132.43,132.41,12.42625451]
[1763661093631,0.68,132.42,132.39,12.42625451]
[1763661093841,0.68,132.42,132.38,0.2]
[1763661094058,10.46882769,132.42,132.41,12.42625451]
[1763661094224,10.46882769,132.42,132.4,12.42625451]
[1763661094430,0.68,132.41,132.4,12.42625451]
[1763661094656,0.68,132.41,132.39,12.42625451]
[1763661094968,80.54721451,132.48,132.4,12.42625451]
[1763661094969,18.80096,132.48,132.4,12.42625451]
[1763661095174,50.0,132.49,132.46,12.42625451]
[1763661095465,50.0,132.51,132.48,12.42625451]
[1763661095678,2.54,132.52,132.5,12.42625451]
[1763661095834,9.78882769,132.51,132.5,12.42625451]
[1763661096036,9.78882769,132.51,132.44,1.86]
[1763661096037,10.46882769,132.51,132.44,1.86]
[1763661096362,10.46882769,132.5,132.49,12.42625451]
[1763661096534,10.46882769,132.5,132.48,12.42625451]
[1763661096733,10.46882769,132.5,132.44,1.86]
[1763661096734,0.68,132.49,132.44,1.86]
[1763661096966,0.68,132.49,132.47,12.42625451]
[1763661097165,50.68,132.49,132.47,12.42625451]
[1763661097344,0.68,132.49,132.48,12.42625451]
[1763661097962,50.68,132.49,132.39,13.18159856]
[1763661098165,9.78882769,132.48,132.41,1.86]
[1763661098473,0.68,132.48,132.47,12.42625451]
[1763661098850,0.68,132.48,132.41,19.98096]
[1763661099055,0.68,132.48,132.47,12.42625451]
[1763661099984,10.46882769,132.48,132.42,18.12096]
[1763661100148,59.78882769,132.47,132.44,12.42625451]
[1763661100353,60.46882769,132.47,132.42,18.12096]
[1763661100697,0.68,132.46,132.44,12.42625451]
[1763661100979,10.46882769,132.46,132.45,12.42625451]
[1763661101853,9.78882769,132.45,132.44,12.42625451]
[1763661102053,9.78882769,132.42,132.41,12.42625451]
[1763661102253,9.78882769,132.42,132.4,12.42625451]
[1763661102486,0.68,132.41,132.39,12.42625451]
[1763661103268,9.78882769,132.43,132.4,12.42625451]
[1763661103468,0.68,132.45,132.42,12.42625451]
[1763661103793,9.78882769,132.43,132.38,20.18096]
[1763661104086,9.78882769,132.43,132.4,12.42625451]
[1763661104291,0.68,132.42,132.4,12.42625451]
[1763661104447,0.68,132.42,132.39,12.42625451]
[1763661104650,9.78882769,132.41,132.39,12.42625451]
[1763661104858,9.78882769,132.41,132.38,12.62625451]
[1763661105080,0.68,132.4,132.38,12.62625451]
[1763661105351,59.78882769,132.39,132.38,0.2]
[1763661105659,0.68,132.4,132.38,12.62625451]
[1763661105862,10.46882769,132.42,132.39,12.42625451]
[1763661106178,10.46882769,132.42,132.38,0.2]
[1763661106179,10.46882769,132.42,132.4,12.42625451]
[1763661106500,0.68,132.42,132.41,12.42625451]
[1763661106658,0.68,132.45,132.41,12.42625451]
[1763661106851,10.46882769,132.45,132.42,12.42625451]
[1763661107273,0.68,132.44,132.42,12.42625451]
[1763661107582,0.68,132.44,132.41,12.42625451]
[1763661107999,0.68,132.44,132.42,12.42625451]
[1763661108168,0.68,132.44,132.41,12.42625451]
[1763661108363,50.0,132.46,132.42,12.42625451]
[1763661108557,0.68,132.45,132.4,1.86]
[1763661108995,0.68,132.45,132.41,12.42625451]
[1763661109192,9.78882769,132.42,132.39,12.42625451]
[1763661109361,12.42625451,132.44,132.38,0.2]
[1763661109362,12.42625451,132.44,132.4,12.42625451]
[1763661109561,10.46882769,132.44,132.41,12.42625451]
[1763661109777,0.68,132.43,132.38,0.2]
[1763661109993,9.78882769,132.42,132.39,12.42625451]
[1763661110370,9.78882769,132.44,132.41,12.42625451]
[1763661110665,0.69,132.43,132.38,0.2]
[1763661110900,0.69,132.43,132.39,12.42625451]
[1763661111098,0.69,132.43,132.4,12.42625451]
[1763661111667,9.78882769,132.44,132.42,12.42625451]
[1763661111896,18.81096,132.46,132.43,12.42625451]
[1763661112100,10.47882769,132.45,132.43,12.42625451]
[1763661112262,0.69,132.44,132.42,12.42625451]
[1763661112463,1.86,132.48,132.43,12.42625451]
[1763661112464,2.55,132.48,132.43,12.42625451]
[1763661112687,0.69,132.51,132.47,12.42625451]
[1763661113000,50.0,132.5,132.47,12.42625451]
[1763661113309,9.78882769,132.49,132.47,12.42625451]
[1763661113496,10.47882769,132.49,132.47,12.42625451]
[1763661113696,0.69,132.48,132.42,18.78096]
[1763661113903,0.69,132.48,132.45,12.42625451]
[1763661114224,0.69,132.48,132.42,18.78096]
[1763661114378,0.69,132.48,132.45,12.42625451]
[1763661115089,9.78882769,132.47,132.43,12.42625451]
[1763661115411,9.78882769,132.45,132.38,2.06]
[1763661115708,9.78882769,132.45,132.41,12.42625451]
[1763661115910,0.69,132.44,132.42,12.42625451]
[1763661116283,68.81096,132.48,132.43,12.42625451]
[1763661116485,9.78882769,132.47,132.44,12.42625451]
[1763661116691,10.47882769,132.47,132.44,12.42625451]
[1763661116892,0.69,132.46,132.44,12.42625451]
[1763661117110,10.47882769,132.47,132.44,12.42625451]
[1763661117288,0.69,132.47,132.45,12.42625451]
[1763661119697,10.47882769,132.47,132.44,12.42625451]
[1763661119899,10.47882769,132.47,132.45,12.42625451]
[1763661120107,10.47882769,132.47,132.42,1.86]
[1763661120108,0.69,132.46,132.42,1.86]
[1763661120311,0.69,132.46,132.43,12.42625451]
[1763661120500,0.69,132.46,132.44,12.42625451]
[1763661120704,9.78882769,132.46,132.45,12.42625451]
[1763661120891,50.69,132.48,132.45,12.42625451]
[1763661121091,11.64882769,132.49,132.47,12.42625451]
[1763661121092,1.86,132.49,132.47,12.42625451]
[1763661121335,50.69,132.5,132.48,12.42625451]
[1763661121630,50.0,132.5,132.47,12.42625451]
[1763661121804,0.69,132.49,132.47,12.42625451]
[1763661122000,0.69,132.49,132.42,1.86]
[1763661122200,9.78882769,132.48,132.45,12.42625451]
[1763661122419,50.0,132.5,132.47,12.42625451]
[1763661122632,9.78882769,132.52,132.49,12.42625451]
[1763661122835,9.78882769,132.54,132.51,12.42625451]
[1763661123124,7.54054681,132.62,132.46,2.52]
[1763661123125,50.0,132.57,132.53,12.42625451]
[1763661123333,9.78882769,132.56,132.54,12.42625451]
[1763661123534,50.69,132.57,132.54,12.42625451]
[1763661123698,10.47882769,132.56,132.54,12.42625451]
[1763661123896,50.0,132.57,132.5,1.86]
[1763661123897,0.69,132.57,132.55,12.42625451]
[1763661124114,50.0,132.59,132.51,18.78096]
[1763661124316,0.69,132.58,132.56,12.42625451]
[1763661124517,0.69,132.58,132.55,12.42625451]
[1763661124705,9.78882769,132.57,132.55,12.42625451]
[1763661125124,10.47882769,132.57,132.55,12.42625451]
[1763661125323,10.47882769,132.57,132.56,12.42625451]
[1763661125519,10.47882769,132.57,132.51,0.66]
[1763661125721,50.69,132.59,132.56,12.42625451]
[1763661125942,1.86,132.62,132.54,1.86]
[1763661125943,0.69,132.58,132.54,1.86]
[1763661126112,0.69,132.58,132.57,12.42625451]
[1763661126444,9.78882769,132.6,132.57,12.42625451]
[1763661126634,0.69,132.63,132.55,0.66]
[1763661126829,0.69,132.62,132.55,0.66]
[1763661127008,0.69,132.62,132.6,7.90538532]
[1763661127440,0.69,132.62,132.61,7.90538532]
[1763661127751,9.78882769,132.64,132.61,7.90538532]
[1763661127917,10.47882769,132.64,132.62,7.90538532]
[1763661128121,10.47882769,132.64,132.58,1.86]
[1763661128337,0.69,132.63,132.56,18.12096]
[1763661128536,9.78882769,132.59,132.51,0.66]
[1763661128741,9.78882769,132.59,132.56,7.90538532]
[1763661128742,10.47882769,132.59,132.56,7.90538532]
[1763661129045,0.69,132.59,132.56,7.90538532]
[1763661129253,9.78882769,132.61,132.58,7.90538532]
[1763661129547,9.78882769,132.61,132.59,7.90538532]
[1763661129869,0.69,132.62,132.6,7.90538532]
[1763661130226,11.64882769,132.64,132.61,7.90538532]
[1763661130524,60.47882769,132.63,132.55,18.12096]
[1763661130747,9.78882769,132.63,132.61,7.90538532]
[1763661131053,10.47882769,132.63,132.61,7.90538532]
[1763661131251,0.69,132.66,132.62,7.90538532]
[1763661131555,0.69,132.66,132.63,7.90538532]
[1763661131719,0.69,132.66,132.64,7.90538532]
[1763661131922,0.69,132.68,132.65,7.90538532]
[1763661132114,0.69,132.68,132.6,0.66]
[1763661132549,0.69,132.68,132.64,7.90538532]
[1763661132758,0.69,132.68,132.65,7.90538532]
[1763661133068,2.55,132.68,132.65,7.90538532]
[1763661133223,2.55,132.68,132.59,19.98096]
[1763661133224,0.69,132.71,132.67,7.90538532]
[1763661133422,0.69,132.71,132.7,7.90538532]
[1763661133624,50.0,132.73,132.7,7.90538532]
[1763661133843,0.69,132.72,132.66,0.66]
[1763661134147,9.78882769,132.72,132.66,0.66]
[1763661134455,108.84311606,132.79,132.71,7.90538532]
[1763661134456,50.69,132.76,132.71,7.90538532]
[1763661134642,50.69,132.76,132.66,18.78096]
[1763661134953,9.78882769,132.75,132.73,7.90538532]
[1763661135154,2.55,132.79,132.74,7.90538532]
[1763661135336,2.55,132.79,132.67,18.78096]
[1763661135337,57.90538532,132.76,132.67,18.78096]
[1763661135527,9.78882769,132.73,132.69,7.90538532]
[1763661135724,0.69,132.72,132.69,7.90538532]
[1763661135936,0.69,132.72,132.65,20.64096]
[1763661135937,9.78882769,132.71,132.65,2.52]
[1763661136136,0.69,132.72,132.69,7.90538532]
[1763661136343,0.69,132.72,132.7,7.90538532]
[1763661136548,9.78882769,132.71,132.68,7.90538532]
[1763661136831,9.78882769,132.69,132.66,7.90538532]
[1763661137030,0.69,132.7,132.68,7.90538532]
[1763661137247,0.69,132.7,132.63,0.66]
[1763661139457,0.69,132.7,132.68,7.90538532]
[1763661139755,0.69,132.7,132.63,0.66]
[1763661139756,0.69,132.7,132.67,7.90538532]
[1763661139944,0.69,132.72,132.69,7.90538532]
[1763661140652,0.69,132.72,132.65,1.86]
[1763661140836,0.69,132.72,132.69,7.90538532]
[1763661142031,0.69,132.72,132.65,2.54]
[1763661142232,9.78882769,132.71,132.65,1.86]
[1763661142551,9.78882769,132.69,132.6,0.68]
[1763661142727,9.78882769,132.67,132.6,0.68]
[1763661142929,9.78882769,132.65,132.61,7.90538532]
[1763661143129,50.0,132.66,132.63,7.90538532]
[1763661143331,0.72,132.66,132.58,0.68]
[1763661143632,20.70096,132.68,132.59,18.12096]
[1763661143934,10.50882769,132.67,132.59,18.12096]
[1763661144148,10.50882769,132.67,132.63,7.90538532]
[1763661144342,69.98096,132.68,132.61,7.90538532]
[1763661144343,35.81517301,132.65,132.61,7.90538532]
[1763661144552,27.90978769,132.65,132.61,7.90538532]
[1763661144741,27.90978769,132.65,132.57,0.68]
[1763661144742,0.72,132.64,132.57,0.68]
[1763661145057,0.72,132.64,132.62,7.90538532]
[1763661145234,9.78882769,132.65,132.63,7.90538532]
[1763661145435,50.72,132.66,132.63,7.90538532]
[1763661145676,0.72,132.66,132.63,7.90538532]
[1763661146072,77.90978769,132.65,132.56,8.58538532]
[1763661146261,9.78882769,132.63,132.59,7.90538532]
[1763661146556,9.78882769,132.63,132.6,7.90538532]
[1763661146738,10.50882769,132.63,132.59,7.90538532]
[1763661146940,10.50882769,132.63,132.6,7.90538532]
[1763661147147,0.72,132.62,132.59,7.90538532]
[1763661147686,50.0,132.6,132.56,7.90538532]
[1763661147982,68.84096,132.62,132.56,7.90538532]
[1763661148273,50.72,132.64,132.6,7.90538532]
[1763661148474,9.78882769,132.65,132.61,7.90538532]
[1763661148659,1.86,132.66,132.56,7.90538532]
[1763661148660,2.58,132.66,132.59,18.12096]
[1763661148863,1.86,132.66,132.62,7.90538532]
[1763661149062,0.72,132.65,132.62,7.90538532]
[1763661149265,10.50882769,132.65,132.62,7.90538532]
[1763661149666,9.78882769,132.65,132.62,7.90538532]
[1763661149877,0.65,132.64,132.62,7.90538532]
[1763661150065,0.65,132.65,132.63,7.90538532]
[1763661150266,60.43882769,132.67,132.63,7.90538532]
[1763661150582,10.43882769,132.66,132.63,7.90538532]
[1763661150954,0.65,132.66,132.63,7.90538532]
[1763661151157,0.65,132.66,132.59,18.84096]
[1763661151359,0.65,132.66,132.63,7.90538532]
[1763661151558,0.65,132.66,132.59,18.84096]
[1763661151756,0.65,132.66,132.63,7.90538532]
[1763661152180,0.65,132.7,132.64,0.72]
[1763661152354,0.65,132.7,132.66,7.90538532]
[1763661152557,9.78882769,132.69,132.62,1.86]
[1763661152756,58.55538532,132.7,132.65,7.90538532]
[1763661153084,102.6,132.69,132.67,7.90538532]
[1763661153580,103.25,132.69,132.63,0.72]
[1763661153785,103.25,132.68,132.65,7.90538532]
[1763661153974,103.25,132.68,132.64,7.90538532]
[1763661154175,0.65,132.67,132.64,7.90538532]
[1763661154480,103.25,132.68,132.65,7.90538532]
[1763661154958,9.78882769,132.66,132.62,1.86]
[1763661155150,9.78882769,132.66,132.62,9.76538532]
[1763661155151,102.6,132.65,132.62,9.76538532]
[1763661155353,103.25,132.65,132.59,18.12096]
[1763661155573,103.25,132.65,132.64,7.90538532]